[Event "Titled Tuesday Blitz June 6 Early 2023"]
[White "Kevlishvili, Robby"]
[Black "Nihal Sarin"]
[WhiteFideId "1040634"]
[BlackFideId "25092340"]
[WhiteElo "2572"]
[BlackElo "2689"]
[Result "0-1"]
[Round "8"]
[TimeControl "180+2"]
[Date "2023.06.06"]
[WhiteClock "0:00:03"]
[BlackClock "0:00:05"]
[Board "2"]

1. e4 {[%clk 0:03:00]}  c5 {[%clk 0:02:56]} 2. Nf3 {[%clk 0:03:00]}  Nc6 {[%clk 0:02:57]} 3. Nc3 {[%clk 0:02:56]}  e6 {[%clk 0:02:54]} 4. d4 {[%clk 0:02:55]}  cxd4 {[%clk 0:02:55]} 5. Nxd4 {[%clk 0:02:55]}  a6 {[%clk 0:02:56]} 6. Nxc6 {[%clk 0:02:55]}  bxc6 {[%clk 0:02:57]} 7. Bd3 {[%clk 0:02:55]}  d5 {[%clk 0:02:56]} 8. O-O {[%clk 0:02:56]}  Nf6 {[%clk 0:02:56]} 9. Qe2 {[%clk 0:02:56]}  Be7 {[%clk 0:02:56]} 10. Bd2 {[%clk 0:02:56]}  a5 {[%clk 0:02:45]} 11. Rae1 {[%clk 0:02:55]}  O-O {[%clk 0:02:45]} 12. e5 {[%clk 0:02:46]}  Nd7 {[%clk 0:02:45]} 13. Na4 {[%clk 0:02:47]}  c5 {[%clk 0:02:37]} 14. c4 {[%clk 0:02:46]}  Bb7 {[%clk 0:02:36]} 15. cxd5 {[%clk 0:02:44]}  Bxd5 {[%clk 0:02:37]} 16. Nc3 {[%clk 0:02:43]}  Bc6 {[%clk 0:02:28]} 17. Bf4 {[%clk 0:02:39]}  Nb6 {[%clk 0:02:22]} 18. Rd1 {[%clk 0:02:34]}  Qc8 {[%clk 0:02:15]} 19. Ne4 {[%clk 0:02:30]}  Nd5 {[%clk 0:01:58]} 20. Bg3 {[%clk 0:02:20]}  Rb8 {[%clk 0:01:57]} 21. b3 {[%clk 0:02:05]}  a4 {[%clk 0:01:33]} 22. Qh5 {[%clk 0:01:46]}  g6 {[%clk 0:01:28]} 23. Qh6 {[%clk 0:01:46]}  Rd8 {[%clk 0:00:41]} 24. Bh4 {[%clk 0:01:31]}  Bxh4 {[%clk 0:00:36]} 25. Qxh4 {[%clk 0:01:29]}  Qc7 {[%clk 0:00:28]} 26. Qg5 {[%clk 0:00:54]}  Qe7 {[%clk 0:00:25]} 27. Nf6+ {[%clk 0:00:43]}  Nxf6 {[%clk 0:00:23]} 28. exf6 {[%clk 0:00:44]}  Qf8 {[%clk 0:00:23]} 29. Bc4 {[%clk 0:00:44]}  axb3 {[%clk 0:00:21]} 30. axb3 {[%clk 0:00:44]}  Rd4 {[%clk 0:00:12]} 31. h3 {[%clk 0:00:35]}  Rbd8 {[%clk 0:00:11]} 32. Ra1 {[%clk 0:00:34]}  h6 {[%clk 0:00:08]} 33. Qe3 {[%clk 0:00:28]}  Bd5 {[%clk 0:00:09]} 34. Rfc1 {[%clk 0:00:22]}  Bxc4 {[%clk 0:00:08]} 35. Rxc4 {[%clk 0:00:21]}  Rd1+ {[%clk 0:00:07]} 36. Rxd1 {[%clk 0:00:21]}  Rxd1+ {[%clk 0:00:07]} 37. Kh2 {[%clk 0:00:21]}  Rd5 {[%clk 0:00:08]} 38. Rh4 {[%clk 0:00:18]}  Kh7 {[%clk 0:00:07]} 39. g3 {[%clk 0:00:18]}  Rf5 {[%clk 0:00:06]} 40. Rf4 {[%clk 0:00:18]}  Rxf4 {[%clk 0:00:05]} 41. Qxf4 {[%clk 0:00:19]}  Qd8 {[%clk 0:00:06]} 42. Qe5 {[%clk 0:00:16]}  Qb6 {[%clk 0:00:05]} 43. h4 {[%clk 0:00:13]}  c4 {[%clk 0:00:06]} 44. bxc4 {[%clk 0:00:13]}  Qxf2+ {[%clk 0:00:06]} 45. Kh3 {[%clk 0:00:13]}  Qf1+ {[%clk 0:00:07]} 46. Kh2 {[%clk 0:00:13]}  Qxc4 {[%clk 0:00:06]} 47. Qb2 {[%clk 0:00:12]}  Qd5 {[%clk 0:00:05]} 48. Qc3 {[%clk 0:00:10]}  e5 {[%clk 0:00:04]} 49. Qa3 {[%clk 0:00:10]}  Qd2+ {[%clk 0:00:02]} 50. Kh3 {[%clk 0:00:10]}  Qd7+ {[%clk 0:00:03]} 51. Kh2 {[%clk 0:00:10]}  g5 {[%clk 0:00:03]} 52. Qf8 {[%clk 0:00:09]}  Kg6 {[%clk 0:00:03]} 53. Qg7+ {[%clk 0:00:09]}  Kf5 {[%clk 0:00:04]} 54. Qxh6 {[%clk 0:00:09]}  Qd2+ {[%clk 0:00:04]} 55. Kh1 {[%clk 0:00:09]}  Qe1+ {[%clk 0:00:05]} 56. Kh2 {[%clk 0:00:09]}  Qf2+ {[%clk 0:00:05]} 57. Kh1 {[%clk 0:00:07]}  Qxg3 {[%clk 0:00:05]} 58. h5 {[%clk 0:00:05]}  Qh3+ {[%clk 0:00:05]} 59. Kg1 {[%clk 0:00:05]}  Qg3+ {[%clk 0:00:06]} 60. Kf1 {[%clk 0:00:05]}  Qf3+ {[%clk 0:00:06]} 61. Ke1 {[%clk 0:00:06]}  e4 {[%clk 0:00:06]} 62. Qh7+ {[%clk 0:00:05]}  Kxf6 {[%clk 0:00:06]} 63. h6 {[%clk 0:00:05]}  e3 {[%clk 0:00:05]} 64. Qg7+ {[%clk 0:00:03]}  Ke6 {[%clk 0:00:05]} 65. Qb2 {[%clk 0:00:03]}  Qh1+ {[%clk 0:00:05]} 0-1


[Site "https://www.chess.com"]

[Event "Titled Tuesday Blitz June 6 Early 2023"]
[White "Terry, Renato"]
[Black "Dubov, Daniil"]
[WhiteFideId "3803457"]
[BlackFideId "24126055"]
[WhiteElo "2575"]
[BlackElo "2793"]
[Result "0-1"]
[Round "8"]
[TimeControl "180+2"]
[Date "2023.06.06"]
[WhiteClock "0:00:01"]
[BlackClock "0:00:12"]
[Board "4"]

1. Nf3 {[%clk 0:03:00]}  Nf6 {[%clk 0:02:59]} 2. e3 {[%clk 0:03:00]}  g6 {[%clk 0:02:58]} 3. b3 {[%clk 0:03:00]}  Bg7 {[%clk 0:02:59]} 4. Bb2 {[%clk 0:03:01]}  O-O {[%clk 0:03:00]} 5. Be2 {[%clk 0:03:00]}  d6 {[%clk 0:02:58]} 6. d4 {[%clk 0:02:59]}  Nc6 {[%clk 0:02:58]} 7. O-O {[%clk 0:02:59]}  Bf5 {[%clk 0:02:57]} 8. Nbd2 {[%clk 0:02:46]}  Ne4 {[%clk 0:02:40]} 9. Nxe4 {[%clk 0:02:28]}  Bxe4 {[%clk 0:02:41]} 10. Nd2 {[%clk 0:02:29]}  Bf5 {[%clk 0:02:40]} 11. c4 {[%clk 0:02:23]}  a5 {[%clk 0:02:30]} 12. a3 {[%clk 0:02:23]}  h6 {[%clk 0:02:24]} 13. h3 {[%clk 0:02:17]}  h5 {[%clk 0:02:19]} 14. g4 {[%clk 0:02:01]}  Bc8 {[%clk 0:02:14]} 15. Kg2 {[%clk 0:02:00]}  e5 {[%clk 0:02:11]} 16. d5 {[%clk 0:01:58]}  Nb8 {[%clk 0:02:06]} 17. gxh5 {[%clk 0:01:44]}  Qg5+ {[%clk 0:01:56]} 18. Kh2 {[%clk 0:01:37]}  Qh4 {[%clk 0:01:55]} 19. Bg4 {[%clk 0:01:36]}  f5 {[%clk 0:01:54]} 20. Bf3 {[%clk 0:01:33]}  e4 {[%clk 0:01:40]} 21. Bxg7 {[%clk 0:01:25]}  Kxg7 {[%clk 0:01:41]} 22. Bg2 {[%clk 0:01:25]}  Nd7 {[%clk 0:01:39]} 23. f4 {[%clk 0:00:52]}  Nf6 {[%clk 0:01:33]} 24. Qe1 {[%clk 0:00:52]}  Qxh5 {[%clk 0:01:23]} 25. Kg1 {[%clk 0:00:52]}  Bd7 {[%clk 0:01:12]} 26. Rc1 {[%clk 0:00:43]}  b6 {[%clk 0:01:10]} 27. Nb1 {[%clk 0:00:41]}  Kh6 {[%clk 0:00:56]} 28. Nc3 {[%clk 0:00:34]}  g5 {[%clk 0:00:55]} 29. Ne2 {[%clk 0:00:31]}  Rg8 {[%clk 0:00:45]} 30. fxg5+ {[%clk 0:00:28]}  Qxg5 {[%clk 0:00:42]} 31. Nf4 {[%clk 0:00:28]}  Nh5 {[%clk 0:00:38]} 32. Rc2 {[%clk 0:00:27]}  Rg7 {[%clk 0:00:37]} 33. Kh2 {[%clk 0:00:20]}  Rag8 {[%clk 0:00:35]} 34. Nxh5 {[%clk 0:00:19]}  Qxh5 {[%clk 0:00:33]} 35. Rf4 {[%clk 0:00:19]}  Rg3 {[%clk 0:00:25]} 36. Qd2 {[%clk 0:00:03]}  Qg5 {[%clk 0:00:23]} 37. Qf2 {[%clk 0:00:02]}  Rg6 {[%clk 0:00:21]} 38. Bf1 {[%clk 0:00:02]}  Kg7 {[%clk 0:00:17]} 39. Rd2 {[%clk 0:00:03]}  Kh7 {[%clk 0:00:16]} 40. b4 {[%clk 0:00:03]}  axb4 {[%clk 0:00:16]} 41. axb4 {[%clk 0:00:04]}  Qf6 {[%clk 0:00:16]} 42. Rd4 {[%clk 0:00:02]}  Qe5 {[%clk 0:00:16]} 43. Qe1 {[%clk 0:00:02]}  Kg7 {[%clk 0:00:15]} 44. Qf2 {[%clk 0:00:02]}  Rf3 {[%clk 0:00:15]} 45. Qh4 {[%clk 0:00:01]}  Rxe3 {[%clk 0:00:16]} 46. Kh1 {[%clk 0:00:01]}  Reg3 {[%clk 0:00:12]} 47. Qd8 {[%clk 0:00:01]}  Rg1+ {[%clk 0:00:11]} 48. Kh2 {[%clk 0:00:01]}  Qxf4# {[%clk 0:00:12]} 0-1


[Site "https://www.chess.com"]

[Event "Titled Tuesday Blitz June 6 Early 2023"]
[White "Nguyen, Ngoc Truong Son"]
[Black "Duda, Jan-Krzysztof"]
[WhiteFideId "12401110"]
[BlackFideId "1170546"]
[WhiteElo "2556"]
[BlackElo "2783"]
[Result "1-0"]
[Round "8"]
[TimeControl "180+2"]
[Date "2023.06.06"]
[WhiteClock "0:00:05"]
[BlackClock "0:00:01"]
[Board "5"]

1. d4 {[%clk 0:03:00]}  d5 {[%clk 0:02:59]} 2. c4 {[%clk 0:03:00]}  e6 {[%clk 0:02:59]} 3. Nc3 {[%clk 0:03:00]}  Nf6 {[%clk 0:02:59]} 4. cxd5 {[%clk 0:02:59]}  exd5 {[%clk 0:03:00]} 5. Bg5 {[%clk 0:02:59]}  Nbd7 {[%clk 0:02:59]} 6. e3 {[%clk 0:02:57]}  h6 {[%clk 0:02:59]} 7. Bh4 {[%clk 0:02:55]}  c6 {[%clk 0:02:58]} 8. Bd3 {[%clk 0:02:55]}  Be7 {[%clk 0:02:57]} 9. Nge2 {[%clk 0:02:51]}  Nh5 {[%clk 0:02:56]} 10. Bg3 {[%clk 0:02:37]}  Nxg3 {[%clk 0:02:55]} 11. hxg3 {[%clk 0:02:38]}  Nf8 {[%clk 0:02:30]} 12. Nf4 {[%clk 0:02:32]}  Ne6 {[%clk 0:02:31]} 13. Nxe6 {[%clk 0:01:56]}  Bxe6 {[%clk 0:02:32]} 14. Qc2 {[%clk 0:01:53]}  Qd7 {[%clk 0:02:31]} 15. Ne2 {[%clk 0:01:50]}  Bb4+ {[%clk 0:02:30]} 16. Kf1 {[%clk 0:01:48]}  Bd6 {[%clk 0:02:21]} 17. Nf4 {[%clk 0:01:45]}  O-O-O {[%clk 0:02:17]} 18. Rb1 {[%clk 0:01:27]}  Kb8 {[%clk 0:02:14]} 19. b4 {[%clk 0:01:26]}  Rc8 {[%clk 0:02:14]} 20. a4 {[%clk 0:01:23]}  Qe7 {[%clk 0:02:04]} 21. Qd2 {[%clk 0:01:21]}  Bd7 {[%clk 0:01:55]} 22. b5 {[%clk 0:01:14]}  g5 {[%clk 0:01:55]} 23. Ne2 {[%clk 0:01:06]}  c5 {[%clk 0:01:54]} 24. dxc5 {[%clk 0:01:03]}  Rxc5 {[%clk 0:01:55]} 25. Nd4 {[%clk 0:01:00]}  Qf6 {[%clk 0:01:54]} 26. Kg1 {[%clk 0:00:48]}  h5 {[%clk 0:01:51]} 27. Qe2 {[%clk 0:00:25]}  Bg4 {[%clk 0:01:46]} 28. Qb2 {[%clk 0:00:19]}  Be5 {[%clk 0:01:40]} 29. f4 {[%clk 0:00:17]}  Bxd4 {[%clk 0:01:32]} 30. Qxd4 {[%clk 0:00:17]}  Qxd4 {[%clk 0:01:31]} 31. exd4 {[%clk 0:00:18]}  Rc3 {[%clk 0:01:32]} 32. Bf1 {[%clk 0:00:17]}  f6 {[%clk 0:01:28]} 33. fxg5 {[%clk 0:00:16]}  fxg5 {[%clk 0:01:28]} 34. Re1 {[%clk 0:00:16]}  Rf8 {[%clk 0:01:21]} 35. Kh2 {[%clk 0:00:15]}  Rf2 {[%clk 0:01:00]} 36. a5 {[%clk 0:00:14]}  Rcc2 {[%clk 0:00:43]} 37. b6 {[%clk 0:00:14]}  axb6 {[%clk 0:00:42]} 38. axb6 {[%clk 0:00:15]}  Rb2 {[%clk 0:00:30]} 39. Re8+ {[%clk 0:00:14]}  Bc8 {[%clk 0:00:31]} 40. Kg1 {[%clk 0:00:13]}  Rfd2 {[%clk 0:00:20]} 41. Rxh5 {[%clk 0:00:12]}  Rxb6 {[%clk 0:00:20]} 42. Rhh8 {[%clk 0:00:11]}  Rc6 {[%clk 0:00:20]} 43. Bb5 {[%clk 0:00:10]}  Rc7 {[%clk 0:00:13]} 44. Rd8 {[%clk 0:00:05]}  Rxd4 {[%clk 0:00:12]} 45. Bd7 {[%clk 0:00:05]}  Rdc4 {[%clk 0:00:13]} 46. Rhg8 {[%clk 0:00:04]}  d4 {[%clk 0:00:10]} 47. Be6 {[%clk 0:00:03]}  Rc1+ {[%clk 0:00:08]} 48. Kh2 {[%clk 0:00:04]}  Rh7+ {[%clk 0:00:05]} 49. Bh3 {[%clk 0:00:04]}  g4 {[%clk 0:00:05]} 50. Rxg4 {[%clk 0:00:05]}  Ka7 {[%clk 0:00:04]} 51. Rgxd4 {[%clk 0:00:05]}  Bxh3 {[%clk 0:00:04]} 52. gxh3 {[%clk 0:00:06]}  b5 {[%clk 0:00:05]} 53. R8d7+ {[%clk 0:00:05]}  Rxd7 {[%clk 0:00:05]} 54. Rxd7+ {[%clk 0:00:06]}  Kb6 {[%clk 0:00:06]} 55. h4 {[%clk 0:00:07]}  b4 {[%clk 0:00:06]} 56. Rd8 {[%clk 0:00:07]}  Kc7 {[%clk 0:00:06]} 57. Rd4 {[%clk 0:00:06]}  b3 {[%clk 0:00:06]} 58. Rb4 {[%clk 0:00:07]}  Rb1 {[%clk 0:00:04]} 59. h5 {[%clk 0:00:07]}  Kc6 {[%clk 0:00:04]} 60. h6 {[%clk 0:00:07]}  Kc5 {[%clk 0:00:03]} 61. Rb8 {[%clk 0:00:07]}  Rb2+ {[%clk 0:00:01]} 62. Kh3 {[%clk 0:00:07]}  Rb1 {[%clk 0:00:01]} 63. Kg4 {[%clk 0:00:06]}  Rh1 {[%clk 0:00:01]} 64. Rxb3 {[%clk 0:00:05]}  Rxh6 {[%clk 0:00:01]} 65. Rd3 {[%clk 0:00:05]} 1-0


[Site "https://www.chess.com"]

[Event "Titled Tuesday Blitz June 6 Early 2023"]
[White "Andreikin, Dmitry"]
[Black "Samadov, Read"]
[WhiteFideId "4158814"]
[BlackFideId "13417444"]
[WhiteElo "2736"]
[BlackElo "2355"]
[Result "1-0"]
[Round "8"]
[TimeControl "180+2"]
[Date "2023.06.06"]
[WhiteClock "0:02:08"]
[BlackClock "0:00:37"]
[Board "6"]

1. Nf3 {[%clk 0:03:00]}  Nf6 {[%clk 0:02:59]} 2. c4 {[%clk 0:03:01]}  g6 {[%clk 0:03:00]} 3. Nc3 {[%clk 0:03:00]}  Bg7 {[%clk 0:03:00]} 4. e4 {[%clk 0:02:58]}  d6 {[%clk 0:03:00]} 5. d4 {[%clk 0:02:59]}  O-O {[%clk 0:03:01]} 6. Be2 {[%clk 0:02:59]}  e5 {[%clk 0:03:00]} 7. d5 {[%clk 0:02:58]}  a5 {[%clk 0:02:59]} 8. Bg5 {[%clk 0:02:59]}  Na6 {[%clk 0:02:57]} 9. Nd2 {[%clk 0:02:58]}  h6 {[%clk 0:02:57]} 10. Be3 {[%clk 0:02:58]}  Qe8 {[%clk 0:02:54]} 11. g4 {[%clk 0:02:56]}  Nc5 {[%clk 0:02:42]} 12. h4 {[%clk 0:02:54]}  Qd7 {[%clk 0:02:24]} 13. Rg1 {[%clk 0:02:48]}  b6 {[%clk 0:02:18]} 14. Qc2 {[%clk 0:02:40]}  a4 {[%clk 0:02:16]} 15. h5 {[%clk 0:02:38]}  g5 {[%clk 0:02:15]} 16. f3 {[%clk 0:02:37]}  Ba6 {[%clk 0:01:55]} 17. Kf2 {[%clk 0:02:37]}  Bb7 {[%clk 0:01:51]} 18. b4 {[%clk 0:02:36]}  axb3 {[%clk 0:01:50]} 19. axb3 {[%clk 0:02:37]}  c6 {[%clk 0:01:40]} 20. b4 {[%clk 0:02:29]}  cxd5 {[%clk 0:01:36]} 21. cxd5 {[%clk 0:02:30]}  Na6 {[%clk 0:01:32]} 22. Qb3 {[%clk 0:02:28]}  Rfc8 {[%clk 0:01:25]} 23. Nc4 {[%clk 0:02:22]}  b5 {[%clk 0:00:55]} 24. Nb6 {[%clk 0:02:19]}  Qd8 {[%clk 0:00:54]} 25. Nxb5 {[%clk 0:02:14]}  Rab8 {[%clk 0:00:42]} 26. Nxc8 {[%clk 0:02:13]}  Rxc8 {[%clk 0:00:41]} 27. Na7 {[%clk 0:02:12]}  Rb8 {[%clk 0:00:37]} 28. Bxa6 {[%clk 0:02:08]} 1-0


[Site "https://www.chess.com"]

[Event "Titled Tuesday Blitz June 6 Early 2023"]
[White "Shevchenko, Kirill"]
[Black "Sanal, Vahap"]
[WhiteFideId "14129574"]
[BlackFideId "6300545"]
[WhiteElo "2603"]
[BlackElo "2606"]
[Result "1-0"]
[Round "8"]
[TimeControl "180+2"]
[Date "2023.06.06"]
[WhiteClock "0:00:57"]
[BlackClock "0:00:09"]
[Board "7"]

1. c4 {[%clk 0:02:49]}  c6 {[%clk 0:02:59]} 2. e4 {[%clk 0:02:48]}  d5 {[%clk 0:02:59]} 3. exd5 {[%clk 0:02:49]}  cxd5 {[%clk 0:03:00]} 4. d4 {[%clk 0:02:49]}  Nf6 {[%clk 0:02:58]} 5. Nc3 {[%clk 0:02:50]}  e6 {[%clk 0:02:58]} 6. Nf3 {[%clk 0:02:49]}  Be7 {[%clk 0:02:58]} 7. cxd5 {[%clk 0:02:42]}  exd5 {[%clk 0:02:58]} 8. h3 {[%clk 0:02:41]}  O-O {[%clk 0:02:57]} 9. Bd3 {[%clk 0:02:39]}  Nc6 {[%clk 0:02:54]} 10. O-O {[%clk 0:02:39]}  h6 {[%clk 0:02:53]} 11. Re1 {[%clk 0:02:36]}  Re8 {[%clk 0:02:48]} 12. Bf4 {[%clk 0:02:36]}  Be6 {[%clk 0:02:41]} 13. Nb5 {[%clk 0:02:36]}  Rc8 {[%clk 0:02:40]} 14. Ne5 {[%clk 0:02:31]}  a6 {[%clk 0:02:35]} 15. Nxc6 {[%clk 0:02:27]}  Rxc6 {[%clk 0:02:31]} 16. Nc3 {[%clk 0:02:27]}  Bd6 {[%clk 0:02:28]} 17. Be5 {[%clk 0:02:22]}  Nd7 {[%clk 0:02:26]} 18. Bxd6 {[%clk 0:01:54]}  Rxd6 {[%clk 0:02:26]} 19. Qf3 {[%clk 0:01:47]}  Nf6 {[%clk 0:02:19]} 20. Na4 {[%clk 0:01:39]}  Ne4 {[%clk 0:02:08]} 21. Nc5 {[%clk 0:01:34]}  Nxc5 {[%clk 0:02:06]} 22. dxc5 {[%clk 0:01:35]}  Rc6 {[%clk 0:02:06]} 23. b4 {[%clk 0:01:36]}  Rc7 {[%clk 0:01:54]} 24. Qf4 {[%clk 0:01:34]}  Rce7 {[%clk 0:01:52]} 25. Qd4 {[%clk 0:01:33]}  Bc8 {[%clk 0:01:48]} 26. Rxe7 {[%clk 0:01:32]}  Rxe7 {[%clk 0:01:44]} 27. a4 {[%clk 0:01:29]}  Qe8 {[%clk 0:01:32]} 28. Qxd5 {[%clk 0:01:24]}  Bd7 {[%clk 0:01:21]} 29. Qxb7 {[%clk 0:01:05]}  Bc6 {[%clk 0:00:43]} 30. Qxa6 {[%clk 0:01:05]}  Re6 {[%clk 0:00:30]} 31. Qc4 {[%clk 0:01:05]}  Qd8 {[%clk 0:00:27]} 32. b5 {[%clk 0:00:58]}  Bd5 {[%clk 0:00:15]} 33. Qf4 {[%clk 0:00:58]}  Bxg2 {[%clk 0:00:12]} 34. Bf5 {[%clk 0:00:58]}  Qf6 {[%clk 0:00:09]} 35. Qb8+ {[%clk 0:00:57]} 1-0


[Site "https://www.chess.com"]

[Event "Titled Tuesday Blitz June 6 Early 2023"]
[White "Svane, Rasmus"]
[Black "Harsh Suresh"]
[WhiteFideId "4657101"]
[BlackFideId "45018464"]
[WhiteElo "2601"]
[BlackElo "2209"]
[Result "1-0"]
[Round "8"]
[TimeControl "180+2"]
[Date "2023.06.06"]
[WhiteClock "0:00:08"]
[BlackClock "0:00:05"]
[Board "9"]

1. Nf3 {[%clk 0:03:00]}  Nf6 {[%clk 0:02:59]} 2. g3 {[%clk 0:03:00]}  b6 {[%clk 0:02:56]} 3. Bg2 {[%clk 0:03:01]}  Bb7 {[%clk 0:02:57]} 4. O-O {[%clk 0:03:01]}  g6 {[%clk 0:02:57]} 5. d4 {[%clk 0:03:02]}  Bg7 {[%clk 0:02:57]} 6. c4 {[%clk 0:03:02]}  O-O {[%clk 0:02:57]} 7. Re1 {[%clk 0:03:03]}  e6 {[%clk 0:02:55]} 8. Bf4 {[%clk 0:03:02]}  d5 {[%clk 0:02:51]} 9. cxd5 {[%clk 0:03:01]}  Nxd5 {[%clk 0:02:52]} 10. Bg5 {[%clk 0:03:01]}  Bf6 {[%clk 0:02:51]} 11. Bh6 {[%clk 0:03:00]}  Bg7 {[%clk 0:02:50]} 12. Bxg7 {[%clk 0:03:00]}  Kxg7 {[%clk 0:02:51]} 13. e4 {[%clk 0:02:56]}  Nf6 {[%clk 0:02:49]} 14. Nc3 {[%clk 0:02:55]}  Nbd7 {[%clk 0:02:46]} 15. Qb3 {[%clk 0:02:47]}  c5 {[%clk 0:02:44]} 16. d5 {[%clk 0:02:47]}  e5 {[%clk 0:02:38]} 17. a4 {[%clk 0:02:47]}  Ne8 {[%clk 0:02:37]} 18. Nd2 {[%clk 0:02:41]}  Ba6 {[%clk 0:02:35]} 19. a5 {[%clk 0:02:12]}  Nd6 {[%clk 0:02:33]} 20. axb6 {[%clk 0:02:04]}  axb6 {[%clk 0:02:34]} 21. Bf1 {[%clk 0:01:55]}  Bxf1 {[%clk 0:02:32]} 22. Rxf1 {[%clk 0:01:56]}  Qg5 {[%clk 0:02:22]} 23. Nc4 {[%clk 0:01:52]}  Nxc4 {[%clk 0:02:22]} 24. Qxc4 {[%clk 0:01:53]}  Qd2 {[%clk 0:02:22]} 25. Rxa8 {[%clk 0:01:47]}  Rxa8 {[%clk 0:02:22]} 26. Qb5 {[%clk 0:01:48]}  Ra7 {[%clk 0:02:13]} 27. Rd1 {[%clk 0:01:47]}  Qc2 {[%clk 0:02:13]} 28. d6 {[%clk 0:01:47]}  h5 {[%clk 0:02:03]} 29. h4 {[%clk 0:01:39]}  Nf6 {[%clk 0:01:49]} 30. d7 {[%clk 0:01:28]}  Nxd7 {[%clk 0:01:28]} 31. Rxd7 {[%clk 0:01:27]}  Rxd7 {[%clk 0:01:29]} 32. Qxd7 {[%clk 0:01:27]}  Qxb2 {[%clk 0:01:29]} 33. Qd3 {[%clk 0:01:12]}  Qb3 {[%clk 0:01:29]} 34. Qe3 {[%clk 0:01:11]}  c4 {[%clk 0:01:24]} 35. Nd5 {[%clk 0:01:10]}  Qb1+ {[%clk 0:01:15]} 36. Kh2 {[%clk 0:01:06]}  b5 {[%clk 0:01:15]} 37. Qf3 {[%clk 0:01:01]}  Kg8 {[%clk 0:01:13]} 38. Qc3 {[%clk 0:00:51]}  Qf1 {[%clk 0:01:07]} 39. Qb2 {[%clk 0:00:47]}  Kh7 {[%clk 0:00:55]} 40. Qd2 {[%clk 0:00:36]}  Kg8 {[%clk 0:00:46]} 41. Qc2 {[%clk 0:00:22]}  Kh7 {[%clk 0:00:43]} 42. Ne3 {[%clk 0:00:22]}  Qe1 {[%clk 0:00:43]} 43. Kg2 {[%clk 0:00:23]}  Qa1 {[%clk 0:00:36]} 44. Nd5 {[%clk 0:00:20]}  Qd4 {[%clk 0:00:36]} 45. Kf3 {[%clk 0:00:19]}  f5 {[%clk 0:00:32]} 46. Ne3 {[%clk 0:00:13]}  f4 {[%clk 0:00:18]} 47. gxf4 {[%clk 0:00:13]}  exf4 {[%clk 0:00:19]} 48. Kxf4 {[%clk 0:00:14]}  c3 {[%clk 0:00:18]} 49. Qb3 {[%clk 0:00:12]}  Kg7 {[%clk 0:00:14]} 50. Kf3 {[%clk 0:00:12]}  b4 {[%clk 0:00:13]} 51. Qc2 {[%clk 0:00:08]}  Qf6+ {[%clk 0:00:11]} 52. Ke2 {[%clk 0:00:07]}  Qxh4 {[%clk 0:00:10]} 53. Qd3 {[%clk 0:00:07]}  Qe7 {[%clk 0:00:10]} 54. Qd4+ {[%clk 0:00:07]}  Kh7 {[%clk 0:00:10]} 55. Nd5 {[%clk 0:00:08]}  Qf7 {[%clk 0:00:07]} 56. Qxb4 {[%clk 0:00:07]}  h4 {[%clk 0:00:07]} 57. Qxc3 {[%clk 0:00:06]}  g5 {[%clk 0:00:07]} 58. Qf3 {[%clk 0:00:06]}  Qa7 {[%clk 0:00:07]} 59. Qh5+ {[%clk 0:00:06]}  Kg8 {[%clk 0:00:06]} 60. Qxg5+ {[%clk 0:00:07]}  Kf7 {[%clk 0:00:07]} 61. Qf5+ {[%clk 0:00:06]}  Kg7 {[%clk 0:00:07]} 62. Qg4+ {[%clk 0:00:06]}  Kf7 {[%clk 0:00:07]} 63. Qh5+ {[%clk 0:00:06]}  Kg7 {[%clk 0:00:07]} 64. Qxh4 {[%clk 0:00:07]}  Qa6+ {[%clk 0:00:06]} 65. Kf3 {[%clk 0:00:06]}  Qd3+ {[%clk 0:00:07]} 66. Kg2 {[%clk 0:00:07]}  Kg8 {[%clk 0:00:07]} 67. Qg3+ {[%clk 0:00:07]}  Qxg3+ {[%clk 0:00:05]} 68. Kxg3 {[%clk 0:00:08]} 1-0


[Site "https://www.chess.com"]

[Event "Titled Tuesday Blitz June 6 Early 2023"]
[White "Svane, Frederik"]
[Black "Grischuk, Alexander"]
[WhiteFideId "12923044"]
[BlackFideId "4126025"]
[WhiteElo "2502"]
[BlackElo "2721"]
[Result "1/2-1/2"]
[Round "8"]
[TimeControl "180+2"]
[Date "2023.06.06"]
[WhiteClock "0:00:09"]
[BlackClock "0:00:04"]
[Board "10"]

1. e4 {[%clk 0:02:54]}  e6 {[%clk 0:03:00]} 2. d4 {[%clk 0:02:53]}  d5 {[%clk 0:03:01]} 3. e5 {[%clk 0:02:51]}  c5 {[%clk 0:03:01]} 4. c3 {[%clk 0:02:52]}  Nc6 {[%clk 0:03:02]} 5. Nf3 {[%clk 0:02:52]}  Bd7 {[%clk 0:03:02]} 6. Be2 {[%clk 0:02:48]}  Nge7 {[%clk 0:03:02]} 7. O-O {[%clk 0:02:48]}  Ng6 {[%clk 0:03:00]} 8. Be3 {[%clk 0:02:47]}  Be7 {[%clk 0:02:52]} 9. Nbd2 {[%clk 0:02:45]}  O-O {[%clk 0:02:49]} 10. a3 {[%clk 0:02:45]}  cxd4 {[%clk 0:02:33]} 11. cxd4 {[%clk 0:02:44]}  f6 {[%clk 0:02:33]} 12. exf6 {[%clk 0:02:39]}  Bxf6 {[%clk 0:02:34]} 13. Bd3 {[%clk 0:02:38]}  Nce7 {[%clk 0:02:26]} 14. Re1 {[%clk 0:02:25]}  Nf5 {[%clk 0:02:25]} 15. Nb3 {[%clk 0:02:11]}  Ba4 {[%clk 0:02:18]} 16. Bxf5 {[%clk 0:01:54]}  exf5 {[%clk 0:02:19]} 17. Qd3 {[%clk 0:01:55]}  b6 {[%clk 0:02:19]} 18. Bd2 {[%clk 0:01:38]}  Qd7 {[%clk 0:01:56]} 19. Ne5 {[%clk 0:01:34]}  Qb5 {[%clk 0:01:57]} 20. Qxb5 {[%clk 0:01:22]}  Bxb5 {[%clk 0:01:58]} 21. Bc3 {[%clk 0:01:19]}  Nf4 {[%clk 0:01:50]} 22. Nc1 {[%clk 0:01:04]}  Rfe8 {[%clk 0:01:35]} 23. g3 {[%clk 0:01:03]}  Ne6 {[%clk 0:01:15]} 24. f4 {[%clk 0:00:35]}  g5 {[%clk 0:01:06]} 25. fxg5 {[%clk 0:00:29]}  Nxg5 {[%clk 0:01:07]} 26. Kg2 {[%clk 0:00:21]}  Ne4 {[%clk 0:01:00]} 27. Ncd3 {[%clk 0:00:19]}  Rac8 {[%clk 0:00:59]} 28. Nf4 {[%clk 0:00:12]}  Bxe5 {[%clk 0:00:51]} 29. dxe5 {[%clk 0:00:13]}  Nxc3 {[%clk 0:00:52]} 30. bxc3 {[%clk 0:00:13]}  Rxc3 {[%clk 0:00:53]} 31. Rad1 {[%clk 0:00:10]}  Rxa3 {[%clk 0:00:39]} 32. e6 {[%clk 0:00:09]}  Bc4 {[%clk 0:00:27]} 33. Re5 {[%clk 0:00:09]}  b5 {[%clk 0:00:24]} 34. Nxd5 {[%clk 0:00:04]}  Bxd5+ {[%clk 0:00:23]} 35. Rdxd5 {[%clk 0:00:05]}  b4 {[%clk 0:00:22]} 36. Rb5 {[%clk 0:00:03]}  a5 {[%clk 0:00:18]} 37. Rxa5 {[%clk 0:00:02]}  Rxe6 {[%clk 0:00:09]} 38. Rxe6 {[%clk 0:00:02]}  Rxa5 {[%clk 0:00:08]} 39. Rb6 {[%clk 0:00:03]}  Ra2+ {[%clk 0:00:09]} 40. Kf3 {[%clk 0:00:04]}  Rb2 {[%clk 0:00:09]} 41. Kf4 {[%clk 0:00:04]}  Kg7 {[%clk 0:00:04]} 42. Kxf5 {[%clk 0:00:04]}  b3 {[%clk 0:00:03]} 43. Kg5 {[%clk 0:00:04]}  Rxh2 {[%clk 0:00:02]} 44. Rb7+ {[%clk 0:00:04]}  Kg8 {[%clk 0:00:02]} 45. Rxb3 {[%clk 0:00:05]}  Rf2 {[%clk 0:00:02]} 46. Kg4 {[%clk 0:00:06]}  Rf7 {[%clk 0:00:02]} 47. Rf3 {[%clk 0:00:06]}  Kg7 {[%clk 0:00:03]} 48. Rxf7+ {[%clk 0:00:06]}  Kxf7 {[%clk 0:00:03]} 49. Kf5 {[%clk 0:00:07]}  Kg7 {[%clk 0:00:02]} 50. g4 {[%clk 0:00:07]}  h6 {[%clk 0:00:03]} 51. g5 {[%clk 0:00:08]}  hxg5 {[%clk 0:00:04]} 52. Kxg5 {[%clk 0:00:09]} 1/2-1/2


[Site "https://www.chess.com"]